fUSD/lending_fUSD_20240114
["ID","MTS","AMOUNT","RATE_DAILY","PERIOD"]
[311612787,1705265450331,-500.0,0.00030136,2]
[311612788,1705265450341,-500.0,0.00030136,2]
[311612789,1705265450351,-500.0,0.00030136,2]
[311612790,1705265450360,-500.0,0.00030136,2]
[311612791,1705265450370,-500.0,0.00030136,2]
[311612792,1705265450379,-500.0,0.00030136,2]
[311612793,1705265450388,-500.0,0.00030136,2]
[311612794,1705265450397,-1595.29,0.00030136,2]
[311612795,1705265450406,-500.0,0.00030136,2]
[311612796,1705265450415,-500.0,0.00030136,2]
[311612797,1705265450424,-500.0,0.00030136,2]
[311612798,1705265450434,-500.53977673,0.00030136,2]
[311612799,1705265450443,-565.13,0.00030136,2]
[311612800,1705265450453,-917.26,0.00030136,2]
[311612801,1705265450462,-2100.41,0.00030136,2]
[311612802,1705265450472,-4300.16,0.00030136,2]
[311612803,1705265450481,-1007.56,0.00030136,2]
[311612804,1705265450491,-776.73,0.00030136,2]
[311612805,1705265450501,-500.0,0.00030136,2]
[311612806,1705265450510,-5057.58,0.00030136,2]
[311612807,1705265450519,-933.45,0.00030136,2]
[311612808,1705265450528,-500.0,0.00030136,2]
[311612809,1705265450538,-531.05,0.00030136,2]
[311612810,1705265450547,-500.0,0.00030136,2]
[311612811,1705265450557,-500.0,0.00030136,2]
[311612813,1705265450566,-500.0,0.00030136,2]
[311612815,1705265450575,-720.02,0.00030136,2]
[311612817,1705265450584,-1593.77,0.00030136,2]
[311612818,1705265450593,-500.0,0.00030136,2]
[311612820,1705265450604,-500.0,0.00030136,5]
[311612822,1705265450612,-500.0,0.00030136,2]
[311612824,1705265450622,-500.0,0.00030136,2]
[311612826,1705265450631,-500.0,0.00030136,2]
[311612828,1705265450640,-500.0,0.00030136,2]
[311612830,1705265450650,-500.0,0.00030136,2]
[311612832,1705265450659,-4742.8,0.00030136,2]
[311612834,1705265450669,-1573.4,0.00030136,2]
[311612836,1705265450678,-500.0,0.00030136,2]
[311612838,1705265450687,-500.0,0.00030136,2]
[311612840,1705265450696,-500.0,0.00030136,2]
[311612842,1705265450705,-332.22,0.00030136,2]
[311612844,1705265450714,-500.0,0.00030136,2]
[311612846,1705265450724,-3392.17,0.00030136,2]
[311612847,1705265450735,-500.0,0.00030136,2]
[311612848,1705265450744,-881.88,0.00030136,2]
[311612849,1705265450753,-3302.73,0.00030136,2]
[311612850,1705265450762,-755.87,0.00030136,2]
[311612851,1705265450773,-500.0,0.00030136,2]
[311612852,1705265450783,-1145.63,0.00030136,2]
[311612853,1705265450792,-500.0,0.00030136,2]
[311612854,1705265450801,-500.0,0.00030136,2]
[311612855,1705265450810,-500.0,0.00030136,2]
[311612857,1705265450821,-500.0,0.00030136,2]
[311612859,1705265450831,-500.0,0.00030136,2]
[311612861,1705265450841,-500.0,0.00030136,2]
[311612863,1705265450851,-500.0,0.00030136,2]
[311612865,1705265450860,-3349.66,0.00030136,2]
[311612867,1705265450870,-500.0,0.00030136,2]
[311612869,1705265450879,-500.0,0.00030136,2]
[311612871,1705265450888,-500.0,0.00030136,2]
[311612873,1705265450897,-699.61,0.00030136,2]
[311612874,1705265450906,-911.19,0.00030136,2]
[311612875,1705265450915,-215.03862351,0.00030136,2]
[311612876,1705265450924,-9373.54,0.00030136,2]
[311612877,1705265450933,-1446.11,0.00030136,2]
[311612878,1705265450943,-500.0,0.00030136,2]
[311612879,1705265450952,-500.0,0.00030136,2]
[311612880,1705265450962,-500.0,0.00030136,2]
[311612881,1705265450971,-464.23572832,0.00030136,2]
[311612882,1705265450980,-500.0,0.00030136,2]
[311612884,1705265450989,-563.79,0.00030136,2]
[311612886,1705265450998,-1392.74,0.00030136,2]
[311612888,1705265451007,-500.0,0.00030136,2]
[311612890,1705265451016,-500.0,0.00030136,2]
[311612892,1705265451025,-500.0,0.00030136,2]
[311612894,1705265451034,-580.88,0.00030136,2]
[311612896,1705265451043,-1674.87,0.00030136,2]
[311612898,1705265451051,-9954.34,0.00030136,2]
[311612900,1705265451061,-2675.53,0.00030136,2]
[311612902,1705265451070,-638.69,0.00030136,2]
[311612904,1705265451079,-609.69,0.00030136,2]
[311612906,1705265451088,-500.0,0.00030136,2]
[311612908,1705265451098,-500.0,0.00030136,2]
[311612910,1705265451107,-1402.19,0.00030136,2]
[311612912,1705265451116,-500.0,0.00030136,2]
[311612914,1705265451125,-500.0,0.00030136,2]
[311612916,1705265451133,-5600.69,0.00030136,2]
[311612918,1705265451142,-541.21,0.00030136,2]
[311612920,1705265451151,-2246.95,0.00030136,2]
[311612921,1705265451160,-830.84,0.00030136,2]
[311612922,1705265451169,-500.0,0.00030136,2]
[311612923,1705265451178,-500.0,0.00030136,2]
[311612924,1705265451188,-500.0,0.00030136,2]
[311612925,1705265451197,-500.0,0.00030136,2]
[311612926,1705265451207,-409.02,0.00030136,2]
[311612927,1705265451216,-500.0,0.00030136,2]
[311612928,1705265451225,-3335.08,0.00030136,2]
[311612929,1705265451234,-924.51,0.00030136,2]
[311612930,1705265451244,-500.0,0.00030136,2]
[311612931,1705265451252,-486.05742242,0.00030136,2]
[311612932,1705265451261,-500.0,0.00030136,2]
[311612933,1705265451270,-10595.33,0.00030136,2]
[311612934,1705265451279,-500.0,0.00030136,2]
[311612935,1705265451288,-836.16,0.00030136,2]
[311612936,1705265451297,-500.0,0.00030136,2]
[311612938,1705265451306,-500.0,0.00030136,2]
[311612940,1705265451315,-500.0,0.00030136,2]
[311612942,1705265451324,-500.0,0.00030136,2]
[311612944,1705265451333,-646.01,0.00030136,2]
[311612946,1705265451343,-500.0,0.00030136,2]
[311612947,1705265451354,-500.0,0.00030136,2]
[311612948,1705265451363,-500.0,0.00030136,2]
[311612949,1705265451372,-500.0,0.00030136,2]
[311612950,1705265451381,-167.37580783,0.00030136,2]
[311612951,1705265451390,-500.0,0.00030136,2]
[311612952,1705265451399,-500.0,0.00030136,2]
[311612953,1705265451408,-500.0,0.00030136,2]
[311612954,1705265451417,-500.0,0.00030136,2]
[311612955,1705265451427,-500.0,0.00030136,2]
[311612956,1705265451436,-500.0,0.00030136,2]
[311612957,1705265451445,-542.28955644,0.00030136,2]
[311612958,1705265451454,-271.00128173,0.00030136,2]
[311612959,1705265451464,-500.0,0.00030136,2]
[311612960,1705265451473,-699.52,0.00030136,2]
[311612961,1705265451483,-1637.96,0.00030136,2]
[311612962,1705265451491,-500.0,0.00030136,2]
[311612963,1705265451500,-3401.5,0.00030136,2]
[311612964,1705265451510,-500.0,0.00030136,2]
[311612965,1705265451519,-3225.32,0.00030136,2]
[311612966,1705265451529,-500.0,0.00030136,2]
[311612967,1705265451541,-500.0,0.00030136,2]
[311612968,1705265451551,-500.0,0.00030136,2]
[311612969,1705265451560,-500.0,0.00030136,2]
[311612970,1705265451569,-500.0,0.00030136,2]
[311612971,1705265451578,-500.0,0.00030136,2]
[311612972,1705265451588,-516.37916931,0.00030136,2]
[311612973,1705265451598,-1658.41,0.00030136,2]
[311612974,1705265451606,-898.47,0.00030136,2]
[311612975,1705265451615,-500.0,0.00030136,2]
[311612976,1705265451624,-512.59882731,0.00030136,2]
[311612977,1705265451634,-747.38,0.00030136,2]
[311612978,1705265451643,-500.0,0.00030136,2]
[311612979,1705265451652,-189.19103106,0.00030136,2]
[311612980,1705265451661,-502.0,0.00030136,2]
[311612981,1705265451670,-500.0,0.00030136,2]
[311612982,1705265451680,-3294.26,0.00030136,2]
[311612983,1705265451689,-500.0,0.00030136,2]
[311612984,1705265451698,-781.12,0.00030136,2]
[311612985,1705265451707,-2934.21,0.00030136,2]
[311612986,1705265451717,-28330.08,0.00030136,2]
[311612987,1705265451728,-500.0,0.00030136,2]
[311612988,1705265451737,-1324.02,0.00030136,2]
[311612989,1705265451746,-1385.96,0.00030136,2]
[311612990,1705265451756,-500.0,0.00030136,2]
[311612991,1705265451766,-509.43,0.00030136,2]
[311612992,1705265451776,-915.45,0.00030136,2]
[311612993,1705265451785,-2258.81,0.00030136,2]
[311612994,1705265451794,-500.0,0.00030136,2]
[311612995,1705265451803,-500.0,0.00030136,2]
[311612996,1705265451814,-993.95,0.00030136,2]
[311612997,1705265451823,-500.0,0.00030136,2]
[311612998,1705265451832,-286.52563334,0.00030136,2]
[311612999,1705265451841,-630.07,0.00030136,2]
[311613000,1705265451851,-500.0,0.00030136,2]
[311613001,1705265451860,-500.0,0.00030136,2]
[311613002,1705265451869,-663.38,0.00030136,2]
[311613003,1705265451879,-500.0,0.00030136,2]
[311613004,1705265451888,-534.75,0.00030136,2]
[311613005,1705265451897,-7238.69,0.00030136,2]
[311613006,1705265451906,-2077.72,0.00030136,2]
[311613007,1705265451916,-1376.21,0.00030136,2]
[311613008,1705265451924,-500.0,0.00030136,2]
[311613009,1705265451934,-560.24,0.00030136,2]
[311613010,1705265451943,-531.81294892,0.00030136,2]
[311613011,1705265451952,-1332.9,0.00030136,2]
[311613012,1705265451962,-1108.32,0.00030136,2]
[311613013,1705265451971,-500.0,0.00030136,2]
[311613014,1705265451980,-500.0,0.00030136,2]
[311613015,1705265451989,-917.54,0.00030136,2]
[311613016,1705265451998,-691.92,0.00030136,2]
[311613017,1705265452007,-500.0,0.00030136,2]
[311613018,1705265452016,-500.0,0.00030136,2]
[311613019,1705265452025,-500.0,0.00030136,2]
[311613020,1705265452034,-500.0,0.00030136,2]
[311613021,1705265452043,-500.0,0.00030136,2]
[311613022,1705265452052,-644.63,0.00030136,2]
[311613023,1705265452061,-500.0,0.00030136,2]
[311613024,1705265452070,-4169.87,0.00030136,2]
[311613025,1705265452079,-503.48,0.00030136,2]
[311613026,1705265452088,-810.05,0.00030136,2]
[311613027,1705265452097,-500.0,0.00030136,2]
[311613028,1705265452106,-799.56,0.00030136,2]
[311613029,1705265452115,-500.0,0.00030136,2]
[311613030,1705265452124,-907.45,0.00030136,2]
[311613031,1705265452134,-500.0,0.00030136,2]
[311613032,1705265452142,-767.29,0.00030136,2]
[311613033,1705265452151,-733.07,0.00030136,2]
[311613034,1705265452160,-500.0,0.00030136,2]
[311613035,1705265452169,-500.0,0.00030136,2]
[311613036,1705265452178,-500.0,0.00030136,2]
[311613037,1705265452186,-6057.77,0.00030136,2]
[311613038,1705265452195,-500.0,0.00030136,2]
[311613039,1705265452204,-1447.4,0.00030136,2]
[311613040,1705265452213,-1557.23,0.00030136,2]
[311613041,1705265452222,-500.0,0.00030136,2]
[311613042,1705265452231,-500.0,0.00030136,2]
[311613043,1705265452241,-500.0,0.00030136,2]
[311613044,1705265452250,-1520.88,0.00030136,2]
[311613045,1705265452259,-500.0,0.00030136,2]
[311613046,1705265452269,-1561.7,0.00030136,2]
[311613047,1705265452278,-500.0,0.00030136,2]
[311613048,1705265452287,-500.0,0.00030136,2]
[311613049,1705265452296,-500.0,0.00030136,2]
[311613050,1705265452305,-16510.87,0.00030136,2]
[311613051,1705265452314,-2650.58,0.00030136,2]
[311613052,1705265452323,-587.88,0.00030136,2]
[311613053,1705265452332,-500.0,0.00030136,2]
[311613054,1705265452342,-500.0,0.00030136,2]
[311613055,1705265452352,-1302.74,0.00030136,2]
[311613056,1705265452361,-3126.96,0.00030136,2]
[311613057,1705265452370,-500.0,0.00030136,2]
[311613058,1705265452379,-1648.36,0.00030136,2]
[311613059,1705265452388,-500.0,0.00030136,2]
[311613060,1705265452397,-500.0,0.00030136,2]
[311613061,1705265452406,-1892.55,0.00030136,2]
[311613062,1705265452414,-500.0,0.00030136,2]
[311613063,1705265452424,-3105.59,0.00030136,2]
[311613064,1705265452433,-500.0,0.00030136,2]
[311613065,1705265452441,-8950.09,0.00030136,2]
[311613066,1705265452450,-1582.78,0.00030136,2]
[311613067,1705265452460,-500.0,0.00030136,2]
[311613068,1705265452469,-500.0,0.00030136,2]
[311613069,1705265452479,-500.0,0.00030136,2]
[311613070,1705265452488,-212.14369903,0.00030136,2]
[311613071,1705265452498,-500.0,0.00030136,2]
[311613072,1705265452507,-1119.58,0.00030136,2]
[311613073,1705265452516,-500.0,0.00030136,2]
[311613074,1705265452526,-643.01491137,0.00030136,2]
[311613075,1705265452535,-925.46,0.00030136,2]
[311613076,1705265452545,-810.88,0.00030136,2]
[311613077,1705265452554,-1419.16,0.00030136,2]
[311613078,1705265452564,-1362.22,0.00030136,2]
[311613079,1705265452572,-500.0,0.00030136,2]
[311613080,1705265452581,-500.0,0.00030136,2]
[311613081,1705265452591,-840.38,0.00030136,2]
[311613082,1705265452602,-707.1,0.00030136,2]
[311613083,1705265452611,-500.0,0.00030136,2]
[311613084,1705265452621,-500.0,0.00030136,2]
[311613085,1705265452631,-500.0,0.00030136,2]
[311613086,1705265452642,-965.13,0.00030136,2]
[311613087,1705265452652,-500.0,0.00030136,2]
[311613088,1705265452661,-500.0,0.00030136,2]
[311613089,1705265452670,-500.0,0.00030136,2]
[311613090,1705265452679,-836.71,0.00030136,2]
[311613091,1705265452688,-500.0,0.00030136,2]
[311613092,1705265452698,-736.07,0.00030136,2]
[311613093,1705265452707,-1354.92,0.00030136,2]
[311613094,1705265452717,-500.0,0.00030136,2]
[311613095,1705265452729,-622.53,0.00030136,2]
[311613096,1705265452739,-1339.45,0.00030136,2]
[311613097,1705265452750,-500.0,0.00030136,2]
[311613098,1705265452759,-5875.67,0.00030136,2]
[311613099,1705265452768,-772.02,0.00030136,2]
[311613100,1705265452779,-300.0,0.00030136,2]
[311613101,1705265452788,-784.6,0.00030136,2]
[311613102,1705265452797,-500.0,0.00030136,2]
[311613103,1705265452916,-500.0,0.00030136,2]
[311613104,1705265452936,-3535.86,0.00030136,2]
[311613105,1705265452945,-726.02,0.00030136,2]
[311613106,1705265452954,-500.0,0.00030136,2]
[311613107,1705265452964,-2000.77,0.00030136,2]
[311613108,1705265452973,-500.0,0.00030136,2]
[311613109,1705265452982,-500.0,0.00030136,2]
[311613110,1705265452991,-4196.76,0.00030136,2]
[311613111,1705265453001,-500.0,0.00030136,2]
[311613112,1705265453010,-1070.23,0.00030136,2]
[311613113,1705265453019,-874.57,0.00030136,2]
[311613114,1705265453029,-563.09,0.00030136,2]
[311613115,1705265453038,-500.0,0.00030136,2]
[311613116,1705265453047,-803.67,0.00030136,2]
[311613117,1705265453056,-581.19,0.00030136,2]
[311613118,1705265453066,-869.2,0.00030136,2]
[311613119,1705265453075,-500.0,0.00030136,2]
[311613120,1705265453084,-2946.84,0.00030136,2]
[311613121,1705265453093,-500.0,0.00030136,2]
[311613122,1705265453103,-500.0,0.00030136,2]
[311613123,1705265453113,-500.0,0.00030136,2]
[311613124,1705265453123,-633.03,0.00030136,2]
[311613125,1705265453132,-500.0,0.00030136,2]
[311613126,1705265453140,-969.9,0.00030136,2]
[311613127,1705265453149,-711.01,0.00030136,2]
[311613128,1705265453159,-1928.32,0.00030136,2]
[311613129,1705265453168,-1464.74,0.00030136,2]
[311613130,1705265453177,-552.27,0.00030136,2]
[311613131,1705265453186,-500.0,0.00030136,2]
[311613132,1705265453195,-500.0,0.00030136,2]
[311613133,1705265453204,-500.0,0.00030136,2]
[311613134,1705265453213,-1643.12,0.00030136,2]
[311613135,1705265453223,-1109.23,0.00030136,2]
[311613136,1705265453232,-500.0,0.00030136,2]
[311613137,1705265453242,-1980.27,0.00030136,2]
[311613138,1705265453251,-1413.08,0.00030136,2]
[311613139,1705265453261,-503.28,0.00030136,2]
[311613140,1705265453270,-500.0,0.00030136,2]
[311613141,1705265453279,-500.0,0.00030136,2]
[311613142,1705265453288,-500.0,0.00030136,2]
[311613143,1705265453298,-500.0,0.00030136,2]
[311613144,1705265453307,-500.0,0.00030136,2]
[311613145,1705265453316,-500.0,0.00030136,2]
[311613146,1705265453326,-1886.92,0.00030136,2]
[311613147,1705265453336,-532.18,0.00030136,2]
[311613148,1705265453346,-710.77,0.00030136,2]
[311613149,1705265453355,-560.65,0.00030136,2]
[311613150,1705265453363,-848.62,0.00030136,2]
[311613151,1705265453373,-4590.19,0.00030136,2]
[311613152,1705265453382,-500.0,0.00030136,2]
[311613153,1705265453392,-610.95,0.00030136,2]
[311613154,1705265453401,-500.0,0.00030136,2]
[311613155,1705265453410,-567.58,0.00030136,2]
[311613156,1705265453419,-500.0,0.00030136,2]
[311613157,1705265453428,-500.0,0.00030136,2]
[311613158,1705265453438,-1287.53,0.00030136,2]
[311613159,1705265453447,-1505.43,0.00030136,2]
[311613160,1705265453456,-500.0,0.00030136,2]
[311613161,1705265453466,-500.0,0.00030136,2]
[311613162,1705265453475,-500.0,0.00030136,2]
[311613163,1705265453485,-153.84,0.00030137,2]
[311613164,1705265453494,-408.24,0.00030137,2]
[311613165,1705265453503,-150.0,0.00030137,2]
[311613166,1705265453512,-300.0,0.00030137,2]
[311613167,1705265453522,-155.0,0.00030137,2]
[311613168,1705265453532,-813.9,0.00030203,2]
[311613169,1705265453542,-15579.32167354,0.00030264,2]
[311613170,1705265453552,-929.47,0.00030279,2]
[311613171,1705265453562,-1993.60653099,0.00030407,2]
[311613172,1705265453571,-300.0,0.00030409,2]
[311613173,1705265453580,-500.0,0.0003041,2]
[311613174,1705265453589,-500.0,0.0003041,2]
[311613175,1705265453598,-500.0,0.0003041,2]
[311613176,1705265453607,-500.0,0.0003041,2]
[311613177,1705265453616,-500.0,0.0003041,2]
[311613178,1705265453625,-500.0,0.0003041,2]
[311613179,1705265453634,-500.0,0.0003041,2]
[311613180,1705265453643,-500.0,0.0003041,2]
[311613181,1705265453653,-500.0,0.0003041,2]
[311613182,1705265453662,-500.0,0.0003041,2]
[311613183,1705265453671,-500.0,0.0003041,2]
[311613184,1705265453680,-500.0,0.0003041,2]
[311613185,1705265453689,-500.0,0.0003041,2]
[311613186,1705265453697,-500.0,0.0003041,2]
[311613187,1705265453706,-500.0,0.0003041,2]
[311613188,1705265453715,-500.0,0.0003041,2]
[311613189,1705265453725,-500.0,0.0003041,2]
[311613190,1705265453738,-500.0,0.0003041,2]
[311613191,1705265453747,-500.0,0.0003041,2]
[311613192,1705265453757,-500.0,0.0003041,2]
[311613193,1705265453766,-500.0,0.0003041,2]
[311613194,1705265453776,-500.0,0.0003041,2]
[311613195,1705265453785,-500.0,0.0003041,2]
[311613196,1705265453794,-500.0,0.0003041,2]
[311613197,1705265453803,-500.0,0.0003041,2]
[311613198,1705265453813,-250.0,0.0003041,2]
[311613199,1705265453823,-500.0,0.0003041,2]
[311613200,1705265453832,-500.0,0.0003041,2]
[311613201,1705265453841,-500.0,0.0003041,2]
[311613202,1705265453851,-500.0,0.0003041,2]
[311613203,1705265453860,-500.0,0.0003041,2]
[311613204,1705265453870,-500.0,0.0003041,2]
[311613205,1705265453879,-500.0,0.0003041,2]
[311613206,1705265453888,-500.0,0.0003041,2]
[311613207,1705265453897,-500.0,0.0003041,2]
[311613208,1705265453907,-500.0,0.0003041,2]
[311613209,1705265453916,-500.0,0.0003041,2]
[311613210,1705265453925,-500.0,0.0003041,2]
[311613211,1705265453934,-500.0,0.0003041,2]
[311613212,1705265453943,-500.0,0.0003041,2]
[311613213,1705265453954,-500.0,0.0003041,2]
[311613214,1705265453963,-500.0,0.0003041,2]
[311613215,1705265453972,-500.0,0.0003041,2]
[311613216,1705265453981,-500.0,0.0003041,2]
[311613217,1705265453990,-500.0,0.0003041,2]
[311613218,1705265453999,-500.0,0.0003041,2]
[311613219,1705265454008,-500.0,0.0003041,2]
[311613220,1705265454017,-500.0,0.0003041,2]
[311613221,1705265454026,-500.0,0.0003041,2]
[311613222,1705265454035,-500.0,0.0003041,2]
[311613223,1705265454044,-500.0,0.0003041,2]
[311613224,1705265454054,-500.0,0.0003041,2]
[311613225,1705265454063,-500.0,0.0003041,2]
[311613226,1705265454072,-500.0,0.0003041,2]
[311613227,1705265454081,-500.0,0.0003041,2]
[311613228,1705265454090,-500.0,0.0003041,2]
[311613229,1705265454101,-500.0,0.0003041,2]
[311613230,1705265454110,-500.0,0.0003041,2]
[311613231,1705265454120,-500.0,0.0003041,2]
[311613232,1705265454129,-500.0,0.0003041,2]
[311613233,1705265454138,-500.0,0.0003041,2]
[311613234,1705265454147,-500.0,0.0003041,2]
[311613235,1705265454156,-500.0,0.0003041,2]
[311613236,1705265454165,-500.0,0.0003041,2]
[311613237,1705265454175,-450.0,0.0003041,2]
[311613238,1705265454185,-500.0,0.0003041,2]
[311613239,1705265454194,-500.0,0.0003041,2]
[311613240,1705265454203,-500.0,0.0003041,2]
[311613241,1705265454212,-500.0,0.0003041,2]
[311613242,1705265454222,-500.0,0.0003041,2]
[311613243,1705265454231,-500.0,0.0003041,2]
[311613244,1705265454240,-500.0,0.0003041,2]
[311613245,1705265454249,-500.0,0.0003041,2]
[311613246,1705265454259,-500.0,0.0003041,2]
[311613247,1705265454268,-500.0,0.0003041,2]
[311613248,1705265454278,-500.0,0.0003041,2]
[311613249,1705265454287,-500.0,0.0003041,2]
[311613250,1705265454296,-500.0,0.0003041,2]
[311613251,1705265454306,-500.0,0.0003041,2]
[311613252,1705265454315,-500.0,0.0003041,2]
[311613253,1705265454324,-500.0,0.0003041,2]
[311613254,1705265454334,-500.0,0.0003041,2]
[311613255,1705265454343,-500.0,0.0003041,2]
[311613256,1705265454354,-500.0,0.0003041,2]
[311613257,1705265454363,-500.0,0.0003041,2]
[311613258,1705265454372,-500.0,0.0003041,2]
[311613259,1705265454381,-500.0,0.0003041,2]
[311613260,1705265454390,-500.0,0.0003041,2]
[311613261,1705265454400,-500.0,0.0003041,2]
[311613262,1705265454409,-500.0,0.0003041,2]
[311613263,1705265454418,-500.0,0.0003041,2]
[311613264,1705265454427,-500.0,0.0003041,2]
[311613265,1705265454436,-500.0,0.0003041,2]
[311613266,1705265454445,-500.0,0.0003041,2]
[311613267,1705265454454,-500.0,0.0003041,2]
[311613268,1705265454463,-500.0,0.0003041,2]
[311613269,1705265454473,-500.0,0.0003041,2]
[311613270,1705265454482,-500.0,0.0003041,2]
[311613271,1705265454491,-500.0,0.0003041,2]
[311613272,1705265454500,-500.0,0.0003041,2]
[311613273,1705265454510,-500.0,0.0003041,2]
[311613274,1705265454519,-500.0,0.0003041,2]
[311613275,1705265454528,-500.0,0.0003041,2]
[311613276,1705265454538,-500.0,0.0003041,2]
[311613277,1705265454547,-500.0,0.0003041,2]
[311613278,1705265454557,-500.0,0.0003041,2]
[311613279,1705265454566,-500.0,0.0003041,2]
[311613280,1705265454575,-500.0,0.0003041,2]
[311613281,1705265454584,-500.0,0.0003041,2]
[311613282,1705265454593,-500.0,0.0003041,2]
[311613283,1705265454603,-500.0,0.0003041,2]
[311613284,1705265454613,-500.0,0.0003041,2]
[311613285,1705265454623,-500.0,0.0003041,2]
[311613286,1705265454632,-500.0,0.0003041,2]
[311613287,1705265454641,-500.0,0.0003041,2]
[311613288,1705265454650,-500.0,0.0003041,2]
[311613289,1705265454659,-500.0,0.0003041,2]
[311613290,1705265454668,-500.0,0.0003041,2]
[311613291,1705265454678,-500.0,0.0003041,2]
[311613292,1705265454687,-500.0,0.0003041,2]
[311613293,1705265454696,-500.0,0.0003041,2]
[311613294,1705265454706,-500.0,0.0003041,2]
[311613295,1705265454718,-500.0,0.0003041,2]
[311613296,1705265454731,-500.0,0.0003041,2]
[311613297,1705265454741,-500.0,0.0003041,2]
[311613298,1705265454751,-500.0,0.0003041,2]
[311613299,1705265454760,-500.0,0.0003041,2]
[311613300,1705265454769,-500.0,0.0003041,2]
[311613301,1705265454778,-500.0,0.0003041,2]
[311613302,1705265454787,-500.0,0.0003041,2]
[311613303,1705265454796,-500.0,0.0003041,2]
[311613304,1705265454806,-500.0,0.0003041,2]
[311613305,1705265454815,-500.0,0.0003041,2]
[311613306,1705265454824,-500.0,0.0003041,2]
[311613307,1705265454832,-500.0,0.0003041,2]
[311613308,1705265454842,-500.0,0.0003041,2]
[311613309,1705265454851,-500.0,0.0003041,2]
[311613310,1705265454860,-500.0,0.0003041,2]
[311613311,1705265454869,-500.0,0.0003041,2]
[311613312,1705265454878,-500.0,0.0003041,2]
[311613313,1705265454887,-500.0,0.0003041,2]
[311613314,1705265454896,-621.85895226,0.0003041,2]
[311613315,1705265454907,-500.0,0.0003041,2]
[311613316,1705265454916,-570.98014907,0.0003041,2]
[311613317,1705265454926,-496.66865784,0.0003041,2]
[311613318,1705265454936,-187.54319004,0.0003041,2]
[311613319,1705265454945,-600.99039536,0.0003041,2]
[311613320,1705265454954,-500.0,0.0003041,2]
[311613321,1705265455249,-500.0,0.0003041,2]
[311613322,1705265455271,-341.77624228,0.0003041,2]
[311613323,1705265455281,-500.0,0.0003041,2]
[311613324,1705265455291,-500.0,0.0003041,2]
[311613325,1705265455301,-500.0,0.0003041,2]
[311613326,1705265455310,-500.0,0.0003041,2]
[311613327,1705265455319,-500.0,0.0003041,2]
[311613328,1705265455329,-500.0,0.0003041,2]
[311613329,1705265455338,-500.0,0.0003041,2]
[311613330,1705265455347,-500.0,0.0003041,2]
[311613331,1705265455357,-500.0,0.0003041,2]
[311613332,1705265455367,-563.58451955,0.0003041,2]
[311613333,1705265455376,-556.32761104,0.0003041,2]
[311613334,1705265455385,-500.0,0.0003041,2]
[311613335,1705265455394,-539.1957152,0.0003041,2]
[311613336,1705265455404,-500.0,0.0003041,2]